bitfinex-derivatives/quotes_BTCF0:USTF0_20230901
["timestamp","ask_amount","ask_price","bid_price","bid_amount"]
[1693563067250,0.4423,26037.0,26036.0,0.004]
[1693563069955,0.44614,26037.0,26036.0,0.004]
[1693563074065,0.44614,26037.0,26036.0,0.06054838]
[1693563074267,0.4423,26037.0,26036.0,0.30076807]
[1693563074570,0.4423,26037.0,26036.0,0.24421969]
[1693563076271,0.4393,26037.0,26036.0,0.24321969]
[1693563076471,0.4753,26037.0,26036.0,0.24621969]
[1693563077870,0.4873,26037.0,26036.0,0.24621969]
[1693563078171,0.4873,26037.0,26036.0,0.24521969]
[1693563078865,0.4513,26037.0,26036.0,0.24421969]
[1693563079071,0.4873,26037.0,26036.0,0.24421969]
[1693563081372,0.4873,26037.0,26036.0,0.004]
[1693563082273,0.4873,26037.0,26036.0,0.08074861]
[1693563096289,0.4873,26037.0,26036.0,0.004]
[1693563096693,0.4873,26037.0,26036.0,0.24421595]
[1693563101291,0.072,26037.0,26036.0,0.24421595]
[1693563101592,0.23052551,26046.0,26040.0,0.4153]
[1693563101798,0.23052551,26047.0,26045.0,0.4153]
[1693563101993,0.23052551,26049.0,26046.0,0.52653745]
[1693563102201,0.23052551,26049.0,26048.0,0.4153]
[1693563102500,0.5664,26050.0,26048.0,0.52653745]
[1693563102794,0.5664,26050.0,26046.0,0.03254017]
[1693563102795,0.5664,26050.0,26049.0,0.4153]
[1693563103190,0.59768836,26050.0,26049.0,0.4153]
[1693563104987,0.63468836,26050.0,26049.0,0.4183]
[1693563105399,0.67168836,26050.0,26049.0,0.4213]
[1693563105695,0.66468836,26050.0,26049.0,0.4213]
[1693563106096,0.62768836,26050.0,26049.0,0.4183]
[1693563106305,0.65668836,26050.0,26049.0,0.4213]
[1693563106798,0.66268836,26050.0,26049.0,0.4213]
[1693563107098,0.66268836,26050.0,26049.0,0.006]
[1693563107490,0.66868836,26050.0,26049.0,0.006]
[1693563108398,0.66868836,26050.0,26049.0,0.003]
[1693563108399,0.66368836,26050.0,26049.0,0.003]
[1693563108790,0.68368836,26050.0,26049.0,0.003]
[1693563108991,0.67868836,26050.0,26048.0,0.4153]
[1693563109188,0.4153,26049.0,26048.0,0.4153]
[1693563109793,0.4153,26049.0,26048.0,1.5218608]
[1693563110600,0.4453,26049.0,26048.0,1.5218608]
[1693563111694,0.4753,26049.0,26048.0,1.5218608]
[1693563112708,0.4743,26049.0,26048.0,1.5218608]
[1693563112907,0.4743,26049.0,26048.0,1.57654987]
[1693563113203,0.4743,26049.0,26048.0,1.57840918]
[1693563113404,0.4813,26049.0,26048.0,1.57838698]
[1693563113805,0.4873,26049.0,26048.0,1.57838698]
[1693563114305,0.4873,26049.0,26048.0,0.52653745]
[1693563114507,0.4873,26049.0,26048.0,0.4153]
[1693563116004,0.4873,26049.0,26048.0,1.52183957]
[1693563116307,0.4873,26049.0,26048.0,1.57838795]
[1693563116503,0.4873,26049.0,26048.0,0.47184838]
[1693563116902,0.4873,26049.0,26048.0,0.4153]
[1693563117098,0.4873,26049.0,26048.0,1.52184079]
[1693563118194,0.4873,26049.0,26048.0,1.63307824]
[1693563120394,0.4873,26049.0,26048.0,1.57838917]
[1693563120600,0.4873,26049.0,26048.0,1.63307824]
[1693563120801,0.4873,26049.0,26048.0,1.52184079]
[1693563120802,0.49114,26049.0,26048.0,1.52184079]
[1693563121106,0.00384,26048.0,26047.0,0.4153]
[1693563121311,0.43914,26048.0,26047.0,0.4153]
[1693563122206,0.43914,26048.0,26047.0,1.52184418]
[1693563122503,0.46914,26048.0,26047.0,1.52184418]
[1693563123099,0.4943,26048.0,26047.0,1.52184418]
[1693563123500,0.4743,26048.0,26047.0,1.63308163]
[1693563124901,0.4443,26048.0,26047.0,1.63308163]
[1693563125109,0.4743,26048.0,26047.0,1.63308163]
[1693563125410,0.4743,26048.0,26047.0,1.70971427]
[1693563126711,0.4743,26048.0,26047.0,1.63308163]
[1693563126907,0.06284,26048.0,26047.0,1.63308163]
[1693563134516,0.4153,26049.0,26048.0,0.03321071]
[1693563134813,0.4153,26049.0,26048.0,1.74257862]
[1693563135518,0.4873,26049.0,26048.0,1.74857862]
[1693563138416,0.4873,26049.0,26048.0,1.74854032]
[1693563140720,0.4873,26049.0,26048.0,1.67225404]
[1693563141511,0.4873,26049.0,26048.0,1.787203]
[1693563144523,0.4873,26049.0,26048.0,1.63904333]
[1693563145718,0.4873,26049.0,26048.0,2.04645317]
[1693563146618,0.42967139,26049.0,26048.0,1.89318789]
[1693563147525,0.42967139,26049.0,26048.0,2.08476949]
[1693563148519,0.42967139,26049.0,26048.0,1.89318789]
[1693563148720,0.42967139,26049.0,26048.0,1.89702789]
[1693563149721,0.42967139,26049.0,26048.0,1.64288333]
[1693563150515,0.42967139,26049.0,26048.0,1.75782749]
[1693563150720,0.42967139,26049.0,26048.0,1.64288333]
[1693563150924,0.42967139,26049.0,26048.0,1.75782424]
[1693563153727,0.42967139,26049.0,26048.0,1.71952954]
[1693563155532,0.42967139,26049.0,26048.0,1.64288333]
[1693563156932,0.42967139,26049.0,26048.0,1.71952954]
[1693563157534,0.42967139,26049.0,26048.0,1.64288333]
[1693563161436,0.42967139,26049.0,26048.0,1.58633495]
[1693563164535,0.42967139,26049.0,26048.0,1.53164588]
[1693563164734,0.65903974,26049.0,26048.0,1.53164588]
[1693563166739,0.42967139,26049.0,26048.0,1.53164588]
[1693563166940,0.072,26049.0,26048.0,1.58633495]
[1693563167136,0.4873,26049.0,26048.0,1.58633495]
[1693563167331,0.71666835,26049.0,26048.0,1.58633495]
[1693563167839,0.71666835,26049.0,26048.0,1.53164588]
[1693563168940,0.71666835,26049.0,26048.0,1.64288333]
[1693563171441,0.71666835,26049.0,26048.0,1.58633495]
[1693563171835,0.4873,26049.0,26048.0,1.58633495]
[1693563172242,0.4873,26049.0,26048.0,1.64288333]
[1693563172637,0.4873,26049.0,26048.0,1.53164588]
[1693563173034,0.4873,26049.0,26048.0,1.52780588]
[1693563177043,0.072,26049.0,26048.0,1.52780588]
[1693563177749,0.07584,26049.0,26048.0,1.52780588]
[1693563182049,0.07584,26049.0,26048.0,1.5278096]
[1693563185146,0.07584,26049.0,26048.0,1.58435798]
[1693563185549,0.07584,26049.0,26048.0,1.63904705]
[1693563186349,0.07584,26049.0,26048.0,1.58435798]
[1693563186951,0.49114,26049.0,26048.0,1.58435798]
[1693563187153,0.49114,26049.0,26048.0,1.63904705]
[1693563187763,0.49114,26049.0,26048.0,1.5278096]
[1693563188861,0.49114,26049.0,26048.0,1.58249867]
[1693563190664,0.49114,26049.0,26048.0,1.63904705]
[1693563190959,0.49114,26049.0,26048.0,1.58435798]
[1693563191356,0.49114,26049.0,26048.0,1.63904705]
[1693563191659,0.49114,26049.0,26048.0,1.58435798]
[1693563192866,0.49114,26049.0,26048.0,1.63904705]
[1693563194162,0.49114,26049.0,26048.0,1.58435798]
[1693563194464,0.49114,26049.0,26048.0,1.63904705]
[1693563194764,0.49114,26049.0,26048.0,1.58435798]
[1693563195767,0.49114,26049.0,26048.0,1.5278096]
[1693563196155,0.4753,26049.0,26048.0,1.5278096]
[1693563196557,0.4623,26049.0,26048.0,1.5278096]
[1693563196755,0.4623,26049.0,26048.0,1.58249867]
[1693563196963,0.4623,26049.0,26048.0,1.5278096]
[1693563197162,0.4623,26049.0,26048.0,1.58249867]
[1693563197561,0.4623,26049.0,26048.0,1.5278096]
[1693563198259,0.4623,26049.0,26048.0,1.58249867]
[1693563198457,0.4623,26049.0,26048.0,1.5278096]
[1693563198657,0.4623,26049.0,26048.0,1.58249867]
[1693563198964,0.4623,26049.0,26048.0,1.5278096]
[1693563201157,0.4623,26049.0,26048.0,1.58249867]
[1693563201370,0.4623,26049.0,26048.0,1.5278096]
[1693563203064,0.4623,26049.0,26048.0,1.58249867]
[1693563204374,0.4623,26049.0,26048.0,1.52777265]
[1693563205777,0.4623,26049.0,26048.0,1.58246172]
[1693563206076,0.4623,26049.0,26048.0,1.6390101]
[1693563206872,0.4623,26049.0,26048.0,1.52777265]
[1693563207065,0.4623,26049.0,26048.0,1.58246172]
[1693563207372,0.4623,26049.0,26048.0,1.52777265]
[1693563207872,0.4623,26049.0,26048.0,1.6390101]
[1693563211666,0.4623,26049.0,26048.0,1.58432103]
[1693563212175,0.4623,26049.0,26048.0,1.6390101]
[1693563212767,0.4623,26049.0,26048.0,1.58432103]
[1693563212968,0.4623,26049.0,26048.0,1.6390101]
[1693563213170,0.4623,26049.0,26048.0,1.6428501]
[1693563216977,0.047,26049.0,26048.0,1.6428501]
[1693563218267,0.047,26049.0,26048.0,1.53161265]
[1693563218474,0.047,26049.0,26048.0,1.58630172]
[1693563218668,0.047,26049.0,26048.0,1.6428501]
[1693563230597,0.047,26049.0,26048.0,1.6390101]
[1693563234605,0.047,26049.0,26048.0,1.58432103]
[1693563234791,0.047,26049.0,26048.0,1.6390101]
[1693563234996,0.047,26049.0,26048.0,1.58432103]
[1693563236296,0.047,26049.0,26048.0,1.6390101]
[1693563236492,0.047,26049.0,26048.0,1.58432103]
[1693563237103,0.047,26049.0,26048.0,1.6390101]
[1693563237292,0.047,26049.0,26048.0,1.58432103]
[1693563237494,0.047,26049.0,26048.0,1.6390101]
[1693563240310,0.047,26049.0,26048.0,1.58432103]
[1693563240604,0.05084,26049.0,26048.0,1.52777265]
[1693563240808,0.46614,26049.0,26048.0,1.11247265]
[1693563241304,0.48614,26049.0,26048.0,1.11247265]
[1693563241509,0.46614,26049.0,26048.0,1.11247265]
[1693563245608,0.52380292,26049.0,26048.0,1.11247265]
[1693563248298,0.52380292,26049.0,26048.0,1.16902103]
[1693563248711,0.52380292,26049.0,26048.0,1.11247265]
[1693563249301,0.52380292,26049.0,26048.0,0.006]
[1693563250305,0.52380292,26049.0,26048.0,1.1124862]
[1693563254714,0.51996292,26049.0,26048.0,1.1163262]
[1693563254915,0.4623,26049.0,26048.0,1.17287458]
[1693563255614,0.4623,26049.0,26048.0,1.22756365]
[1693563260315,0.4623,26049.0,26048.0,1.17287458]
[1693563260722,0.4623,26049.0,26048.0,1.22756365]
[1693563261524,0.4623,26049.0,26048.0,1.17287458]
[1693563261816,0.4623,26049.0,26048.0,1.22756365]
[1693563262722,0.4623,26049.0,26048.0,1.1163262]
[1693563264312,0.4623,26049.0,26048.0,1.17101527]
[1693563264821,0.4623,26049.0,26048.0,1.1163262]
[1693563265021,0.4623,26049.0,26048.0,1.17101527]
[1693563266429,0.4623,26049.0,26048.0,1.1163262]
[1693563267233,0.4623,26049.0,26048.0,1.17101527]
[1693563267627,0.4623,26049.0,26048.0,1.1163262]
[1693563269028,0.4623,26049.0,26048.0,1.11630639]
[1693563269226,0.4623,26049.0,26048.0,1.17099546]
[1693563269628,0.4623,26049.0,26048.0,1.22754384]
[1693563270228,0.4623,26049.0,26048.0,1.11630639]
[1693563271732,0.4503,26049.0,26048.0,1.11430639]
[1693563272033,0.4373,26049.0,26048.0,1.22354384]
[1693563272334,0.4373,26049.0,26048.0,1.11230639]
[1693563274137,0.49606682,26049.0,26048.0,1.11230639]
[1693563278336,0.49606682,26049.0,26048.0,1.16885477]
[1693563279932,0.49606682,26049.0,26048.0,1.11230639]
[1693563280635,0.49606682,26049.0,26048.0,1.10846639]
[1693563281034,0.49606682,26049.0,26048.0,1.16501477]
[1693563283141,0.49606682,26049.0,26048.0,1.21970384]
[1693563284644,0.4373,26049.0,26048.0,1.21970384]
[1693563286136,0.4373,26049.0,26048.0,1.16501477]
[1693563286339,0.4373,26049.0,26048.0,1.21970384]
[1693563286839,0.4373,26049.0,26048.0,1.16501477]
[1693563287038,0.4373,26049.0,26048.0,1.21970384]
[1693563287843,0.4373,26049.0,26048.0,1.16501477]
[1693563288632,0.4373,26049.0,26048.0,1.21970384]
[1693563289637,0.4373,26049.0,26048.0,1.16501477]
[1693563289837,0.4373,26049.0,26048.0,1.21970384]
[1693563291950,0.4373,26049.0,26048.0,1.18501477]
[1693563292546,0.4373,26049.0,26048.0,1.23970384]
[1693563292739,0.4373,26049.0,26048.0,1.21970384]
[1693563292940,0.4373,26049.0,26048.0,1.23970384]
[1693563293740,0.4373,26049.0,26048.0,1.21970384]
[1693563312560,0.4373,26049.0,26048.0,1.22165874]
[1693563315562,0.022,26049.0,26048.0,1.71365515]
[1693563319461,0.022,26049.0,26048.0,1.71749515]
[1693563319670,0.166,26054.0,26049.0,0.11507745]
[1693563319866,0.166,26054.0,26053.0,0.41914]
[1693563320060,0.4153,26057.0,26054.0,0.00384]
[1693563320254,0.3326,26056.0,26055.0,1.63300384]
[1693563320452,0.3326,26056.0,26055.0,1.52176639]
[1693563320652,0.3326,26056.0,26055.0,1.52372129]
[1693563320857,0.3326,26056.0,26055.0,1.63495874]
[1693563321463,0.3666,26056.0,26055.0,1.63795874]
[1693563321862,0.4016,26056.0,26055.0,1.64095874]
[1693563325072,0.4016,26056.0,26055.0,1.52972129]
[1693563325460,0.4016,26056.0,26055.0,1.58441036]
[1693563328272,0.8169,26056.0,26055.0,1.11442129]
[1693563328467,0.8169,26056.0,26055.0,0.0079549]
[1693563329271,0.8169,26056.0,26055.0,1.11424207]
[1693563329660,0.8369,26056.0,26055.0,1.11424207]
[1693563332362,0.8369,26056.0,26055.0,0.0004549]
[1693563332571,0.8369,26056.0,26053.0,0.00057569]
[1693563332763,0.4153,26054.0,26053.0,0.00057569]
[1693563332968,0.4353,26054.0,26053.0,0.00057569]
[1693563333170,0.4353,26054.0,26053.0,1.10694484]
[1693563334075,0.4393,26054.0,26053.0,1.10894484]
[1693563334471,0.4663,26054.0,26053.0,1.10894484]
[1693563335675,0.4923,26054.0,26053.0,1.10894484]
[1693563336372,0.4923,26054.0,26053.0,1.16363391]
[1693563336679,0.4923,26054.0,26053.0,1.10894484]
[1693563337082,0.4353,26054.0,26053.0,1.10694484]
[1693563337274,0.5073,26054.0,26053.0,1.16363391]
[1693563337470,0.5073,26054.0,26053.0,1.10894484]
[1693563339982,0.4873,26054.0,26053.0,1.11278484]
[1693563340676,0.4873,26054.0,26053.0,1.24402229]
[1693563340883,0.4873,26054.0,26053.0,1.22402229]
[1693563344484,0.4873,26054.0,26053.0,1.16747391]
[1693563345285,0.4873,26054.0,26053.0,1.11278484]
[1693563345483,0.4873,26054.0,26053.0,1.10894484]
[1693563346082,0.51846253,26054.0,26053.0,1.10894484]
[1693563353292,0.51846253,26054.0,26053.0,1.16363391]
[1693563353483,0.51846253,26054.0,26053.0,1.10894484]
[1693563356494,0.51846253,26054.0,26053.0,1.52424484]
[1693563357504,0.53846253,26054.0,26053.0,1.52424484]
[1693563362190,0.59541173,26054.0,26053.0,1.52424484]
[1693563365696,0.18011173,26054.0,26053.0,1.10894484]
[1693563367894,0.16011173,26054.0,26053.0,1.10894484]
[1693563368602,0.16011173,26054.0,26053.0,1.16363391]
[1693563369100,0.16011173,26054.0,26053.0,1.10894484]
[1693563369295,0.16011173,26054.0,26053.0,1.16363391]
[1693563370903,0.16011173,26054.0,26053.0,1.10894484]
[1693563371102,0.16011173,26054.0,26053.0,1.16363391]
[1693563371601,0.16011173,26054.0,26053.0,1.10894484]
[1693563383309,0.16011173,26054.0,26053.0,1.16363391]
[1693563383612,0.16011173,26054.0,26053.0,1.10894484]
[1693563383913,0.16011173,26054.0,26053.0,1.16363391]
[1693563384109,0.16011173,26054.0,26053.0,1.10894484]
[1693563386215,0.16011173,26054.0,26053.0,1.16363391]
[1693563386415,0.16011173,26054.0,26053.0,1.10894484]
[1693563386717,0.16011173,26054.0,26053.0,1.16363391]
[1693563387014,0.16011173,26054.0,26053.0,1.10894484]
[1693563388016,0.16011173,26054.0,26053.0,1.16363391]
[1693563388619,0.16011173,26054.0,26053.0,1.10894484]
[1693563390217,0.16011173,26054.0,26053.0,1.16363391]
[1693563390518,0.16011173,26054.0,26053.0,1.10894484]
[1693563394821,0.16011173,26054.0,26053.0,1.10794484]
[1693563398216,0.16011173,26054.0,26053.0,1.11178484]
[1693563407924,0.16011173,26054.0,26053.0,1.22302229]
[1693563408734,0.16011173,26054.0,26053.0,1.16833322]
[1693563409333,0.16011173,26054.0,26053.0,1.11178484]
[1693563409533,0.16011173,26054.0,26053.0,1.16647391]
[1693563409843,0.16011173,26054.0,26053.0,1.11178484]
[1693563411534,0.16011173,26054.0,26053.0,1.16647391]
[1693563412034,0.16011173,26054.0,26053.0,1.11178484]
[1693563412734,0.16011173,26054.0,26053.0,1.16647391]
[1693563412926,0.16011173,26054.0,26053.0,1.11178484]
[1693563413326,0.16011173,26054.0,26053.0,1.16647391]
[1693563413833,0.12411173,26054.0,26053.0,1.16647391]
[1693563414030,0.16011173,26054.0,26053.0,1.16647391]
[1693563415338,0.16011173,26054.0,26053.0,1.11178484]
[1693563415937,0.12411173,26054.0,26053.0,1.11078484]
[1693563416134,0.16011173,26054.0,26053.0,1.16647391]
[1693563416439,0.16011173,26054.0,26053.0,1.11178484]
[1693563431148,0.16011173,26054.0,26053.0,1.22302229]
[1693563432951,0.16011173,26054.0,26053.0,1.16647391]
[1693563434062,0.16011173,26054.0,26053.0,1.11178484]
[1693563435052,0.16011173,26054.0,26053.0,1.16647391]
[1693563435258,0.16011173,26054.0,26053.0,1.11178484]
[1693563436857,0.16011173,26054.0,26053.0,1.16647391]
[1693563437059,0.16011173,26054.0,26053.0,1.16263391]
[1693563437359,0.16011173,26054.0,26053.0,1.10794484]
[1693563437546,0.16011173,26054.0,26053.0,1.21918229]
[1693563438352,0.16011173,26054.0,26053.0,1.16263391]
[1693563446463,0.16011173,26054.0,26053.0,1.10794484]
[1693563446664,0.16011173,26054.0,26053.0,1.16263391]
[1693563447665,0.16011173,26054.0,26053.0,1.08445646]
[1693563447868,0.16011173,26054.0,26053.0,1.13914553]
[1693563448160,0.16011173,26054.0,26053.0,1.08445646]
[1693563449976,0.16011173,26054.0,26053.0,1.13914553]
[1693563450164,0.16011173,26054.0,26053.0,1.08445646]
[1693563457567,0.16011173,26054.0,26053.0,1.13914553]
[1693563457971,0.16011173,26054.0,26053.0,1.08445646]
[1693563458566,0.16011173,26054.0,26053.0,1.13914553]
[1693563458870,0.16011173,26054.0,26053.0,1.08445646]
[1693563460171,0.16011173,26054.0,26053.0,1.13914553]
[1693563461672,0.16011173,26054.0,26053.0,1.08445646]
[1693563462976,0.16011173,26054.0,26053.0,1.13914553]
[1693563463773,0.16011173,26054.0,26053.0,1.08445646]
[1693563463973,0.16011173,26054.0,26053.0,1.08829646]
[1693563465073,0.16011173,26054.0,26053.0,1.14298553]
[1693563465278,0.16011173,26054.0,26053.0,1.08829646]
[1693563465869,0.16011173,26054.0,26053.0,1.02056695]
[1693563466074,0.01898,26053.0,26051.0,0.00384]
[1693563466278,0.01898,26053.0,26050.0,0.4153]
[1693563466279,0.01514,26051.0,26050.0,0.4153]
[1693563466462,0.01514,26051.0,26050.0,0.40016]
[1693563466463,0.4153,26051.0,26050.0,0.40016]
[1693563466973,0.4153,26051.0,26048.0,0.49197653]
[1693563467168,0.4153,26049.0,26048.0,0.51197653]
[1693563468574,0.4153,26049.0,26048.0,0.4353]
[1693563469862,0.4413,26049.0,26048.0,0.4353]
[1693563471577,0.4413,26049.0,26048.0,1.59645815]
[1693563472172,0.4413,26049.0,26048.0,1.54176908]
[1693563473774,0.4413,26049.0,26048.0,1.59645815]
[1693563474184,0.4413,26049.0,26048.0,1.57645815]
[1693563474475,0.4413,26049.0,26048.0,1.54176908]
[1693563474668,0.4413,26049.0,26048.0,1.52176908]
[1693563475481,0.4413,26049.0,26048.0,1.57645815]
[1693563475685,0.4413,26049.0,26048.0,1.52176908]
[1693563481482,0.52926791,26049.0,26048.0,1.52176908]
[1693563486592,0.52926791,26049.0,26048.0,1.52179209]
[1693563487988,0.05619792,26053.0,26048.0,2.36832954]
[1693563488193,0.76297356,26056.0,26052.0,0.4153]
[1693563488495,0.76297356,26056.0,26055.0,0.4153]
[1693563488693,0.60057356,26056.0,26055.0,0.52653745]
[1693563489495,0.00057356,26056.0,26055.0,0.52653745]
[1693563489894,0.02657356,26056.0,26055.0,0.52853745]
[1693563490284,0.02457356,26056.0,26055.0,0.52853745]
[1693563490484,0.04557356,26056.0,26055.0,0.53053745]
[1693563490694,0.07573792,26056.0,26055.0,0.53053745]
[1693563494701,0.07173792,26056.0,26055.0,0.52653745]
[1693563496305,0.07173792,26056.0,26055.0,0.4153]
[1693563497095,0.08473792,26056.0,26055.0,0.4153]
[1693563497395,0.10473792,26056.0,26055.0,0.4153]
[1693563497599,0.05073792,26056.0,26055.0,0.4153]
[1693563497901,0.12073792,26056.0,26055.0,0.4153]
[1693563498402,0.12273792,26056.0,26055.0,0.4153]
[1693563499901,0.18164458,26056.0,26055.0,0.4153]
[1693563500203,0.16164458,26056.0,26055.0,0.4153]
[1693563500398,0.18164458,26056.0,26055.0,0.4153]
[1693563501099,0.16164458,26056.0,26055.0,0.4153]
[1693563501304,0.18164458,26056.0,26055.0,0.4153]
[1693563501503,0.16164458,26056.0,26055.0,0.4153]
[1693563511106,0.16164458,26056.0,26055.0,0.46998907]
[1693563511612,0.16164458,26056.0,26055.0,0.4153]
[1693563513212,0.16164458,26056.0,26055.0,0.46998907]
[1693563513411,0.16164458,26056.0,26055.0,0.4153]
[1693563514313,0.16164458,26056.0,26055.0,0.47184838]
[1693563515114,0.16164458,26056.0,26055.0,0.4153]
[1693563516924,0.57694458,26056.0,26055.0,0.4153]
[1693563519218,0.57694458,26056.0,26055.0,0.47184838]
[1693563519715,0.57694458,26056.0,26053.0,0.5544]
[1693563519912,0.00384,26054.0,26050.0,0.1391]
[1693563520112,0.00384,26054.0,26053.0,0.4153]
[1693563520314,0.00384,26054.0,26053.0,1.5216633]
[1693563521613,0.04084,26054.0,26053.0,1.57635237]
[1693563522215,0.07384,26054.0,26053.0,1.57635237]
[1693563522415,0.07584,26054.0,26053.0,1.57635237]
[1693563523414,0.07584,26054.0,26053.0,1.5216633]
[1693563529541,0.07584,26054.0,26053.0,1.57821168]
[1693563530038,0.07584,26054.0,26053.0,1.63290075]
[1693563530442,0.07584,26054.0,26053.0,1.57821168]
[1693563530843,0.24244,26054.0,26053.0,1.5216633]
[1693563531142,0.20644,26054.0,26053.0,1.5216633]
[1693563531344,0.24244,26054.0,26053.0,1.5216633]
[1693563531843,0.24244,26054.0,26053.0,1.57821168]
[1693563532245,0.24244,26054.0,26053.0,1.63290075]
[1693563533642,0.30090713,26054.0,26053.0,1.63290075]
[1693563535345,0.30090713,26054.0,26053.0,1.5216633]
[1693563536551,0.73620713,26054.0,26051.0,0.41587574]
[1693563536749,0.41914,26052.0,26051.0,0.4075676]
[1693563536936,0.00384,26051.0,26049.0,0.49192007]
[1693563537141,0.4153,26050.0,26049.0,0.4153]
[1693563538346,0.4353,26050.0,26049.0,0.4153]
[1693563538546,0.4563,26050.0,26049.0,0.4153]
[1693563540152,0.4353,26050.0,26049.0,0.4153]
[1693563540348,0.041,26050.0,26049.0,0.4153]
[1693563541545,0.021,26050.0,26049.0,0.4153]
[1693563541746,0.054,26050.0,26049.0,1.57830256]
[1693563542046,0.034,26050.0,26049.0,1.57830256]
[1693563542248,0.054,26050.0,26049.0,1.57830256]
[1693563542643,0.034,26050.0,26049.0,1.57830256]
[1693563542845,0.067,26050.0,26049.0,1.57830256]
[1693563543449,0.033,26050.0,26049.0,1.57830256]
[1693563543649,0.054,26050.0,26049.0,1.57830256]
[1693563544449,0.033,26050.0,26049.0,1.63299163]
[1693563544651,0.067,26050.0,26049.0,1.63299163]
[1693563545654,0.067,26050.0,26049.0,1.57830256]
[1693563547055,0.067,26050.0,26049.0,1.63299163]
[1693563547553,0.067,26050.0,26049.0,1.57830256]
[1693563548653,0.067,26050.0,26049.0,1.52175418]
[1693563551152,0.067,26050.0,26049.0,1.52174025]
[1693563552457,0.033,26050.0,26049.0,1.52174025]
[1693563552758,0.067,26050.0,26049.0,1.52174025]
[1693563556865,0.067,26050.0,26049.0,1.57642932]
[1693563557164,0.067,26050.0,26049.0,1.52174025]
[1693563558768,0.067,26050.0,26049.0,1.57642932]
[1693563558968,0.067,26050.0,26049.0,1.52174025]
[1693563560860,0.067,26050.0,26049.0,1.6329777]
[1693563563765,0.5023,26050.0,26049.0,1.10644025]
[1693563564067,0.5023,26050.0,26048.0,1.10644025]
[1693563564255,0.00384,26048.0,26046.0,0.49192007]
[1693563564459,0.4153,26047.0,26046.0,0.49192007]
[1693563564756,0.5807,26047.0,26046.0,0.49192007]
[1693563565765,0.5877,26047.0,26046.0,0.49192007]
[1693563566569,0.5957,26047.0,26046.0,0.49192007]
[1693563567074,0.1804,26047.0,26046.0,0.49192007]
[1693563568673,0.015,26047.0,26046.0,0.49192007]
[1693563568870,0.1816,26047.0,26046.0,0.49192007]
[1693563570571,0.5969,26047.0,26046.0,0.49192007]
[1693563572478,0.5889,26047.0,26046.0,0.49192007]
[1693563572676,0.6099,26047.0,26046.0,0.49192007]
[1693563574374,0.6229,26047.0,26046.0,0.49188451]
[1693563579777,0.65404684,26047.0,26046.0,0.49188451]
[1693563582583,0.65404684,26047.0,26046.0,0.07658451]
[1693563584078,0.65404684,26047.0,26045.0,0.53017677]
[1693563584285,0.4153,26046.0,26045.0,0.53017677]
[1693563585089,0.4153,26046.0,26045.0,0.58672515]
[1693563585586,0.4223,26046.0,26045.0,0.58672515]
[1693563586082,0.4303,26046.0,26045.0,0.58672515]
[1693563586986,0.4233,26046.0,26045.0,0.58672515]
[1693563587176,0.4303,26046.0,26045.0,0.58672515]
[1693563587376,0.4303,26046.0,26045.0,0.77030562]
[1693563593883,0.4303,26046.0,26045.0,0.65542885]
[1693563594386,0.4303,26046.0,26045.0,0.4153]
[1693563598387,0.4303,26046.0,26045.0,0.52653745]
[1693563600489,0.4303,26046.0,26045.0,0.4153]
[1693563601684,0.4303,26046.0,26045.0,0.46998907]
[1693563601892,0.4303,26046.0,26045.0,0.4153]
[1693563602190,0.4303,26046.0,26045.0,0.46998907]
[1693563602384,0.4303,26046.0,26045.0,0.52653745]
[1693563602689,0.4303,26046.0,26045.0,0.47184838]
[1693563602888,0.4303,26046.0,26045.0,0.52653745]
[1693563603090,0.4303,26046.0,26045.0,0.47184838]
[1693563603488,0.4303,26046.0,26045.0,0.4153]
[1693563606194,0.4303,26046.0,26045.0,0.46998907]
[1693563607097,0.4303,26046.0,26045.0,0.4153]
[1693563607395,0.4303,26046.0,26045.0,0.56846903]
[1693563607696,0.4303,26046.0,26045.0,0.6231581]
[1693563608293,0.4303,26046.0,26045.0,0.56846903]
[1693563608490,0.4303,26046.0,26045.0,0.82261626]
[1693563608894,0.4303,26046.0,26045.0,0.87730533]
[1693563609395,0.4303,26046.0,26045.0,0.93385371]
[1693563609787,0.4303,26046.0,26045.0,1.17397778]
[1693563611791,0.4303,26046.0,26045.0,1.06274033]
[1693563612194,0.4303,26046.0,26045.0,1.1174294]
[1693563612597,0.4303,26046.0,26045.0,1.17397778]
[1693563613795,0.4303,26046.0,26045.0,1.11928871]
[1693563614498,0.4303,26046.0,26045.0,1.17397778]
[1693563616903,0.4303,26046.0,26045.0,0.93385371]
[1693563617902,0.4303,26046.0,26045.0,0.78068468]
[1693563618203,0.4303,26046.0,26045.0,0.93406713]
[1693563620404,0.4303,26046.0,26045.0,0.87937806]
[1693563620606,0.4303,26046.0,26045.0,0.93406713]
[1693563621106,0.4303,26046.0,26045.0,0.87937806]
[1693563621300,0.4303,26046.0,26045.0,0.82282968]
[1693563621800,0.4303,26046.0,26045.0,0.87751875]
[1693563622207,0.4303,26046.0,26045.0,0.93406713]
[1693563622703,0.4303,26046.0,26045.0,0.82282968]
[1693563623914,0.4303,26046.0,26045.0,0.4153]
[1693563624397,0.4303,26046.0,26045.0,0.47184838]
[1693563624904,0.4303,26046.0,26045.0,0.71197383]
[1693563625507,0.4303,26046.0,26045.0,0.7666629]
[1693563626308,0.4303,26046.0,26045.0,0.92004535]
[1693563626909,0.015,26046.0,26045.0,0.92004535]
[1693563627612,0.015,26046.0,26045.0,0.7666629]
[1693563632112,0.015,26046.0,26045.0,0.9340698]
[1693563647122,0.015,26046.0,26045.0,0.52653745]
[1693563647323,0.015,26046.0,26045.0,0.71197467]
[1693563648330,0.015,26046.0,26045.0,0.76666374]
[1693563653927,0.015,26046.0,26045.0,1.19418845]
[1693563654328,0.015,26046.0,26045.0,0.95406216]
[1693563660837,0.015,26046.0,26045.0,0.93406216]
[1693563661039,0.015,26046.0,26045.0,0.95406216]
[1693563661444,0.015,26046.0,26045.0,1.19417832]
[1693563662136,0.015,26046.0,26045.0,0.94003606]
[1693563662530,0.015,26046.0,26045.0,0.92003606]
[1693563662739,0.015,26046.0,26045.0,0.94003606]
[1693563663831,0.015,26046.0,26045.0,0.76665361]
[1693563664833,0.015,26046.0,26045.0,0.92003606]
[1693563665335,0.015,26046.0,26045.0,0.76665361]
[1693563665735,0.015,26046.0,26045.0,0.92003606]